[Event "Italian-ch Teams-B 2022"]
[Site "Montesilvano"]
[Date "2022.04.22"]
[Round "5.2"]
[White "Formento, Paolo"]
[Black "Favaloro, Andrea"]
[Result "1-0"]
[ECO "E32"]
[WhiteElo "2336"]
[BlackElo "2370"]
[Annotator "TA"]
[PlyCount "95"]
[EventDate "2022.04.19"]
[EventType "team-tourn"]
[EventCountry "ITA"]
[SourceTitle "playchess.com"]
[Source "ChessBase"]
[SourceQuality "1"]
[TimeControl "40/5400+30:1800+30"]

{[%evp 9,95,24,23,29,25,33,8,20,18,8,7,5,11,9,29,36,38,40,26,-60,-46,-72,-19,-59,-11,-38,39,46,62,64,58,0,145,145,193,148,149,139,166,101,114,96,77,77,91,0,135,175,176,164,201,201,276,279,273,262,234,235,216,230,218,162,248,255,416,411,373,358,442,445,433,416,476,468,495,472,470,458,785,539,598,593,577,572,509,479,516,470]} 1. d4 {[%emt 0:12:56]} Nf6 {[%emt 0:00:09]} 2. c4 {[%emt 0:00:42]} e6 {[%emt 0:00:07]} 3. Nc3 {[%emt 0:00:37]} Bb4 {[%emt 0:00:08]} 4. Qc2 {[%emt 0:00:28]} b6 {[%emt 0:01:10]} 5. e4 {[%emt 0:02:45]} c5 {[%emt 0:00:10]} 6. d5 {[%emt 0:03:44] E32: Nimzo-Indian: Classical (4 Qc2): 4...0-0.} Qe7 {[%emt 0:00:06]} 7. Nge2 {[%emt 0:03:19]} exd5 {[%emt 0:01:11]} 8. exd5 {[%emt 0:02:00] The position is equal.} O-O {[%emt 0:00:11]} 9. Bd2 {[%emt 0:02:29]} d6 {[%emt 0:00:52]} 10. O-O-O {[%emt 0:02:24]} Ng4 {[%emt 0:02:04]} 11. Be1 {[%emt 0:11:29]} a6 {[%emt 0:03:50] [#]} 12. h3 $146 {[%emt 0:04:40]} ({Predecessor:} 12. Ng3 b5 13. Bd3 h6 14. Kb1 Ne5 15. Nce2 bxc4 16. Bxc4 a5 17. a4 Nxc4 18. Qxc4 {0-1 (29) Bayona Ordonez,A-Benitez Lozano,J (2309) Chihuahua City 2022}) 12... Ne5 {[%emt 0:00:40]} 13. Ng3 {[%emt 0:06:10]} b5 {[%emt 0:01:21]} 14. Bd2 {[%emt 0:00:08]} (14. a3 $11 Ba5 15. cxb5 (15. Nce4 Bxe1 16. Rxe1 f5 $11)) 14... f5 $1 $15 {[%emt 0:13:52]} 15. Nh5 {[%emt 0:07:01]} (15. cxb5 f4 16. Nge4 Bf5 $11) 15... Qh4 {[%emt 0:07:42]} (15... Nxc4 16. Bxc4 bxc4 17. Rhe1 $11) ({Black should play} 15... Nbd7 $17) 16. Be2 {[%emt 0:08:04]} bxc4 {[%emt 0:11:00]} (16... Bxc3 $15 17. Qxc3 Qxf2) 17. g3 {[%emt 0:02:33]} Nd3+ {[%emt 0:03:08]} (17... Qd4 18. Be1 Bxc3 19. Rxd4 Bxd4 20. Nf4 $16) (17... Qe7 $15) 18. Bxd3 $14 {[%emt 0:03:54]} cxd3 {[%emt 0:01:22]} 19. gxh4 {[%emt 0:00:14]} dxc2 {[%emt 0:00:07]} 20. Rde1 {[%emt 0:02:15]} (20. Kxc2 f4 $11) (20. Rdg1 $1 $14 Rf7 21. Rg3 (21. Kxc2 f4 $11)) 20... Ra7 {[%emt 0:00:51]} (20... Nd7 $1 $11 {keeps the balance.}) 21. Rhg1 $16 {[%emt 0:02:33][%mdl 1024] Strongly threatening Bh6. White has strong compensation.} (21. Kxc2 $6 f4 $11) 21... Kh8 {[%emt 0:09:59]} (21... Bxc3 $2 22. Bxc3 g6 23. Nf6+ (23. Kxc2 Nd7 $18) 23... Rxf6 24. Bxf6 $18) (21... g6 $16) 22. a3 {[%emt 0:00:20]} (22. Kxc2 $6 Raf7 $16) 22... Ba5 {[%emt 0:01:12]} (22... Bxc3 $2 23. Bxc3 h6 24. Bxg7+ Rxg7 25. Rxg7 $18) 23. Bf4 {[%emt 0:04:34]} (23. Kxc2 Raf7 $16) 23... Rd7 {[%emt 0:01:59]} (23... Bxc3 $2 24. bxc3 Rd7 25. Kxc2 $18) 24. Re6 {[%emt 0:02:34]} (24. Kxc2 Bc7 $16) (24. Rg3 $18) 24... Bc7 {[%emt 0:06:55]} (24... Bxc3 $2 25. bxc3 Rb7 26. Ree1 $18) 25. Rge1 {[%emt 0:00:49] Threatens to win with Re8.} Kg8 {[%emt 0:03:08]} (25... g6 26. Bh6 $1 Rdd8 27. Bxf8 gxh5 28. Be7 Bxe6 29. Bf6+ Kg8 30. dxe6 $18) 26. Kxc2 {[%emt 0:08:04]} Rdf7 {[%emt 0:07:41]} 27. Rxd6 {[%emt 0:04:54] 0x0.0023821a128edp-1022s more active pieces.} (27. Bxd6 $16 Bxd6 28. Rxd6) 27... Bxd6 {[%emt 0:04:19]} (27... g6 $11 {remains equal.}) 28. Bxd6 {[%emt 0:00:01] Black is on the road to losing.} f4 {[%emt 0:00:17][%cal Of8d8]} 29. Bxf8 {[%emt 0:01:12]} ({Inferior is} 29. Bxc5 g6 30. Bxf8 Rxf8 $17) 29... Kxf8 {[%emt 0:00:10]} 30. Ne4 {[%emt 0:01:01] And now Nd6 would win.} Bxh3 {[%emt 0:06:03] [#]} 31. Ng5 $1 {[%emt 0:00:34]} ({Stronger than} 31. Nxc5 g6 32. Kc3 (32. Ne6+ Bxe6 33. Rxe6 gxh5 $17) 32... gxh5 $17) 31... Bf5+ {[%emt 0:00:23]} 32. Kc3 {[%emt 0:00:07]} Re7 {[%emt 0:02:47]} 33. Rxe7 {[%emt 0:00:04]} Kxe7 {[%emt 0:00:03]} 34. Nxg7 $18 {[%emt 0:00:05][%mdl 4096] Endgame KBN-KNN} Bb1 {[%emt 0:04:56]} 35. N7e6 {[%emt 0:01:08]} Kd6 {[%emt 0:01:56]} (35... h6 $142) 36. Nxf4 {[%emt 0:00:55] Pair of Knights!} Ke5 $2 {[%emt 0:00:47]} (36... Nd7 {might work better.} 37. b3 Nf6 38. Nf7+ Ke7) 37. Nd3+ {[%emt 0:00:26]} Kxd5 {[%emt 0:00:09]} 38. Nxh7 {[%emt 0:00:33]} c4 {[%emt 0:03:49]} 39. Nb4+ {[%emt 0:00:28]} Ke5 {[%emt 0:01:42]} 40. Ng5 {[%emt 0:00:24]} Kf4 {[%emt 0:01:20]} 41. f3 {[%emt 0:21:14] White is clearly winning.} Kg3 {[%emt 0:15:19]} 42. Kxc4 {[%emt 0:00:27]} Kxh4 {[%emt 0:16:35]} 43. Ne4 {[%emt 0:00:14]} Nd7 {[%emt 0:00:00]} (43... a5 $142 44. Nd5 Nd7) 44. Kd4 {[%emt 0:01:16]} a5 {[%emt 0:00:00]} 45. Nc6 {[%emt 0:00:11]} a4 {[%emt 0:00:00]} 46. Ne5 {[%emt 0:01:01]} Nf8 {[%emt 0:00:00]} 47. Nc5 {[%emt 0:01:08]} Bc2 {[%emt 0:00:00]} 48. Kc3 {[%emt 0:00:32] Weighted Error Value: White=0.20 (precise) /Black=0.31} 1-0

[Event "Italian-ch Teams-B 2022"]
[Site "Montesilvano"]
[Date "2022.04.22"]
[Round "5.2"]
[White "Botta, Massimiliano"]
[Black "Bellia, Fabrizio"]
[Result "0-1"]
[ECO "C79"]
[WhiteElo "2217"]
[BlackElo "2428"]
[Annotator "TA"]
[PlyCount "58"]
[EventDate "2022.04.19"]
[EventType "team-tourn"]
[EventCountry "ITA"]
[SourceTitle "playchess.com"]
[Source "ChessBase"]
[SourceQuality "1"]
[TimeControl "40/5400+30:1800+30"]

{[%evp 21,58,0,0,0,0,0,8,0,12,0,12,-38,-38,-50,-38,-59,-50,-61,-50,-49,-53,-62,-60,-70,-74,-69,-56,-66,-66,-92,-39,-35,0,-97,-73,-98,-46,-53,-18]} 1. e4 {[%emt 0:04:53]} e5 {[%emt 0:00:09]} 2. Nf3 {[%emt 0:00:18]} Nc6 {[%emt 0:00:06]} 3. Bb5 {[%emt 0:00:08]} a6 {[%emt 0:00:06]} 4. Ba4 {[%emt 0:00:37]} d6 {[%emt 0:00:08]} 5. Bxc6+ {[%emt 0:03:31]} bxc6 {[%emt 0:00:25]} 6. d4 {[%emt 0:00:05]} exd4 {[%emt 0:03:56]} 7. Nxd4 {[%emt 0:01:00]} c5 {[%emt 0:01:56]} 8. Nf3 {[%emt 0:01:14]} Bb7 {[%emt 0:03:18]} 9. Nc3 {[%emt 0:00:12]} Nf6 {[%emt 0:00:42]} 10. O-O {[%emt 0:02:23]} Be7 {[%emt 0:01:40]} 11. Re1 {[%emt 0:00:26]} O-O {[%emt 0:01:17]} 12. b3 {[%emt 0:14:15] [#] C79: Ruy Lopez: Steinitz-type lines with 3...a6 4 Ba4 Nf6 5 0-0 d6.} Re8 $146 {[%emt 0:04:53]} ({Predecessor:} 12... Ng4 13. Nd5 Bh4 14. Re2 f5 15. Nxh4 Qxh4 16. Bf4 Rae8 17. Nxc7 Rxe4 18. Bg3 Qf6 19. Rxe4 fxe4 {½-½ (52) Sanchez Almeyra,J (2425)-Bevia Martinez,L (2255) Mislata 1992}) 13. Bb2 {[%emt 0:00:56]} Bf8 {[%emt 0:05:41][%cal Rf6e4]} 14. Qd3 {[%emt 0:02:28] The position is equal.} g6 {[%emt 0:11:40]} 15. Nd5 {[%emt 0:17:00]} Bg7 {[%emt 0:01:12]} 16. c4 {[%emt 0:12:28]} (16. Bxf6 $11 Bxf6 17. Rad1) 16... Nxd5 $15 {[%emt 0:07:11]} 17. Bxg7 {[%emt 0:00:45]} Nf6 {[%emt 0:05:16]} 18. Bh6 {[%emt 0:08:34]} Nxe4 {[%emt 0:02:21]} ({But not} 18... Bxe4 19. Qc3 Bxf3 20. Qxf3 $11) 19. Re2 {[%emt 0:01:57]} Qf6 {[%emt 0:07:56]} 20. Rae1 {[%emt 0:00:21]} Re6 $1 {[%emt 0:00:06] [#] aiming for ...g5.} 21. Bc1 {[%emt 0:07:17][%cal Re2e4]} Rae8 {[%emt 0:04:30]} 22. Bb2 {[%emt 0:00:12] Against Qc3} Qf4 {[%emt 0:06:09]} (22... Nxf2 $2 23. Kxf2 Qf4 24. h3 $18) 23. h3 {[%emt 0:02:09]} h5 {[%emt 0:14:15]} 24. Bc1 {[%emt 0:02:26]} Qf5 {[%emt 0:02:21][%cal Oe4g5] &Nero is more active.} 25. Re3 {[%emt 0:03:26]} Ng3 {[%emt 0:04:55]} 26. Qd2 {[%emt 0:04:31]} Ne4 {[%emt 0:03:22]} (26... Rxe3 $15 27. Rxe3 Rxe3 28. Qxe3 Ne4) 27. Qd3 $1 $17 {[%emt 0:00:05]} Qf6 {[%emt 0:01:30]} 28. R3e2 {[%emt 0:03:41]} Qc3 {[%emt 0:01:13]} ({Black should play} 28... g5 $17 29. Bb2 Qf5) 29. Qb1 {[%emt 0:00:43] [#] And now Bb2 would win.} Ng5 {[%emt 0:02:20][%mdl 32768] Weighted Error Value: White=0.09 (flawless) /Black=0.10 (very precise) . Loss on time!?} 0-1

[Event "Italian-ch Teams-B 2022"]
[Site "Montesilvano"]
[Date "2022.04.22"]
[Round "5.3"]
[White "Zawadzka, Jolanta"]
[Black "Andreoni, Giuseppe"]
[Result "1/2-1/2"]
[ECO "C60"]
[WhiteElo "2412"]
[BlackElo "2158"]
[Annotator "TA"]
[PlyCount "102"]
[EventDate "2022.04.19"]
[EventType "team-tourn"]
[EventCountry "ITA"]
[SourceTitle "playchess.com"]
[Source "ChessBase"]
[SourceQuality "1"]
[TimeControl "40/5400+30:1800+30"]

{[%evp 14,102,44,25,37,29,52,44,39,-1,0,1,1,0,-6,-12,0,0,0,0,3,-2,-5,-15,21,0,37,33,31,-19,-14,-16,-19,-83,-87,-101,-91,-151,-99,-111,-120,-105,-89,-80,-96,-90,-106,-87,-25,-88,-95,-233,-64,-70,-64,-135,-18,-55,-49,-47,-39,-45,-66,-248,-56,-281,-264,-236,-80,-76,-82,-84,-79,-76,-75,-251,-251,-311,-269,-522,-512,-786,-235,-229,-230,-222,-35,-35,-6,-6,0]} 1. e4 {[%emt 0:01:18]} e5 {[%emt 0:00:05]} 2. Nf3 {[%emt 0:00:22]} Nc6 {[%emt 0:00:05]} 3. Bb5 {[%emt 0:00:08]} g6 {[%emt 0:00:06]} 4. O-O {[%emt 0:03:00]} Bg7 {[%emt 0:00:20]} 5. c3 {[%emt 0:03:57]} a6 {[%emt 0:00:23]} 6. Ba4 {[%emt 0:00:56]} Nge7 {[%emt 0:00:38]} 7. d4 {[%emt 0:01:38]} exd4 {[%emt 0:00:08]} 8. cxd4 {[%emt 0:00:08]} b5 {[%emt 0:00:11] C60: Ruy Lopez: Unusual Black 3rd moves and 3...g6.} 9. Bc2 {[%emt 0:01:42]} d5 {[%emt 0:00:08]} 10. exd5 {[%emt 0:02:42]} Nb4 {[%emt 0:00:11] White is slightly better.} 11. Re1 {[%emt 0:06:36]} Nxc2 {[%emt 0:27:21]} 12. Qxc2 {[%emt 0:00:06]} O-O {[%emt 0:00:11]} 13. Bg5 {[%emt 0:15:47]} f6 {[%emt 0:01:43]} 14. Bh4 {[%emt 0:00:17]} Bb7 {[%emt 0:13:12]} 15. Nc3 {[%emt 0:05:25] [#]} Nxd5 $146 {[%emt 0:20:10]} ({Predecessor:} 15... Rf7 16. Rac1 Rc8 17. Bg3 Bxd5 18. Nxd5 Qxd5 19. a3 Nf5 20. Qc6 Qxc6 21. Rxc6 Rd7 {1-0 (77) Kovalev,V (2648)-Delchev,A (2543) Chess.com INT 2020}) 16. Ne4 {[%emt 0:06:02]} Nb6 {[%emt 0:08:41]} 17. Rad1 {[%emt 0:08:28]} Bd5 {[%emt 0:09:42]} 18. h3 {[%emt 0:11:51]} Kh8 {[%emt 0:00:39]} 19. Nfd2 {[%emt 0:01:15]} g5 {[%emt 0:04:02]} (19... Bxa2 20. b3 $16) 20. Bg3 {[%emt 0:00:36]} f5 {[%emt 0:00:04][%cal Bf6f5,Bf5f4][%mdl 32] [#]} 21. Nc5 {[%emt 0:02:42]} (21. Bxc7 $1 $14 Rc8 22. Bxd8 Rxc2 23. Bxb6 fxe4 24. Nxe4) 21... f4 $11 {[%emt 0:00:38]} ({Resist} 21... Bxa2 22. b3 f4 23. Bxf4 $1 {[%mdl 512]} gxf4 24. Ne6 (24. Qxa2 Qf6 $16) 24... Bxb3 25. Nxb3 $18) (21... Bxd4 22. Ndb3 Bxc5 23. Be5+ (23. Nxc5 f4 $14) 23... Kg8 24. Nxc5 $18 (24. Qxc5 c6 $16)) 22. Bh2 {[%emt 0:00:10]} Qf6 {[%emt 0:01:56]} 23. Nce4 {[%emt 0:04:37]} (23. b3 $11) 23... Qg6 $17 {[%emt 0:04:11]} 24. Qc5 {[%emt 0:06:34]} Rad8 $36 {[%emt 0:01:17][%mdl 2048] ...Na4 is the strong threat. Black is in control.} 25. Nc3 {[%emt 0:01:02]} (25. b3 $142) 25... Ba8 {[%emt 0:03:04] This bishop pair is nice.} (25... g4 $142 26. hxg4 Qxg4 27. Nxd5 Nxd5) 26. Nde4 {[%emt 0:01:42]} h6 {[%emt 0:02:03]} 27. d5 {[%emt 0:02:27]} b4 {[%emt 0:00:25]} 28. Qxb4 {[%emt 0:00:59]} Nxd5 {[%emt 0:00:06]} 29. Nxd5 {[%emt 0:01:18]} Bxd5 {[%emt 0:00:21]} 30. Nc3 {[%emt 0:01:37] [#]} Ba8 {[%emt 0:00:26]} ({Black should play} 30... Rb8 $1 $17 31. Qe7 (31. Qc5 Ba8) 31... Bf7) 31. Qe7 {[%emt 0:01:50]} (31. Rxd8 $11 Rxd8 32. Qe7) 31... Rb8 {[%emt 0:01:00]} 32. Re6 {[%emt 0:01:23]} (32. f3 $17) 32... Qf7 $2 {[%emt 0:01:29]} (32... Qf5 $1 $19 33. Ree1 (33. Rd7 $2 Bxc3 34. Rxh6+ Kg8 $19) 33... Rxb2) 33. Qxf7 $1 $15 {[%emt 0:00:38]} Rxf7 {[%emt 0:00:01]} 34. Rxa6 {[%emt 0:00:10]} (34. Na4 $15) 34... Kh7 {[%emt 0:00:42]} (34... Rff8 $17 35. Na4 Rfd8 36. Rxd8+ Rxd8) 35. Na4 {[%emt 0:02:35]} Re7 {[%emt 0:00:08][%mdl 1024] Black has compensation.} 36. f3 {[%emt 0:01:51]} Bb7 {[%emt 0:01:15]} 37. Ra5 {[%emt 0:00:08]} Bc6 {[%emt 0:00:07] Strongly threatening ...Re2.} (37... Rbe8 {is more complex.} 38. Kf1 Re2 39. Bg1 Rc2) 38. b3 $2 {[%emt 0:01:50]} (38. Kh1 $1 $15) 38... Re2 $2 {[%emt 0:00:41]} (38... Rbe8 $1 $19 {aiming for ...Re1+.} 39. Kf1 Re2) 39. Nc5 $2 {[%emt 0:01:12] [#]} ({Better is} 39. Kh1 $15) 39... Rbe8 $1 $19 {[%emt 0:00:24][%cal Og7d4]} 40. Ne4 {[%emt 0:02:35] [#]} Bxe4 $2 {[%emt 0:01:04]} (40... Rc2 $1 $19 {and Black stays clearly on top.} 41. Ra7 Bxe4 42. fxe4 Rxe4) 41. fxe4 $17 {[%emt 0:30:05]} R8xe4 {[%emt 0:30:21]} 42. Kf1 {[%emt 0:00:00]} Rc2 {[%emt 0:00:00][%cal Of4f3]} 43. Bg1 {[%emt 0:00:00]} Bf8 {[%emt 0:00:00] Prevents Rc5. Hoping for ...Bd6.} 44. Ra6 {[%emt 0:00:00]} (44. a4 $17) 44... Bd6 $19 {[%emt 0:00:00]} 45. a4 {[%emt 0:00:00]} Ree2 {[%emt 0:01:14]} 46. b4 $2 {[%emt 0:00:00]} (46. Rc6 {only move.} Ra2 47. Rcc1) 46... Rxg2 {[%emt 0:00:29]} 47. b5 {[%emt 0:00:00]} (47. Rd3 $142 Ra2 48. Rc6) 47... Rgd2 $2 {[%emt 0:01:50]} (47... Rg3 {( -> ...Rf3+)} 48. Ba7 Rxh3) 48. Rxd2 {[%emt 0:00:00]} Rxd2 {[%emt 0:00:01]} 49. Rc6 {[%emt 0:00:58]} Be5 $2 {[%emt 0:01:11]} ({Black should try} 49... Rd1+ $19 50. Kg2 f3+ 51. Kf2 Be5) 50. Re6 $1 $15 {[%emt 0:02:10]} Bd6 {[%emt 0:00:19] White must now prevent ...h5.} 51. Bf2 $1 {[%emt 0:01:13] Threatens to win with a5.} ({Wrong is} 51. a5 $2 Rd1+ 52. Kg2 f3+ 53. Kf2 Bc5+ 54. Kxf3 Rxg1 $19) 51... Rd5 {[%emt 0:00:39] Weighted Error Value: White=0.45/Black=0.54} 1/2-1/2

[Event "Italian-ch Teams-B 2022"]
[Site "Montesilvano"]
[Date "2022.04.22"]
[Round "5.3"]
[White "Quinn, Mark"]
[Black "Manca, Federico"]
[Result "1-0"]
[ECO "D34"]
[WhiteElo "2365"]
[BlackElo "2370"]
[Annotator "TA"]
[PlyCount "62"]
[EventDate "2022.04.19"]
[EventType "team-tourn"]
[EventCountry "ITA"]
[SourceTitle "playchess.com"]
[Source "ChessBase"]
[SourceQuality "1"]
[TimeControl "40/5400+30:1800+30"]

{[%evp 19,62,29,64,60,60,58,52,43,51,57,77,67,64,69,64,63,58,50,90,95,92,95,86,81,88,75,115,110,123,124,122,125,287,268,515,515,501,493,1322,1391,1369,1334,1331,1269,29994]} 1. d4 {[%emt 0:09:10]} d5 {[%emt 0:00:35]} 2. c4 {[%emt 0:00:22]} e6 {[%emt 0:00:10]} 3. Nf3 {[%emt 0:00:14]} c5 {[%emt 0:00:33]} 4. cxd5 {[%emt 0:01:41]} exd5 {[%emt 0:00:07]} 5. g3 {[%emt 0:01:15]} Nc6 {[%emt 0:01:19]} 6. Bg2 {[%emt 0:00:32]} Nf6 {[%emt 0:01:22]} 7. O-O {[%emt 0:00:53]} Be7 {[%emt 0:00:24]} 8. Nc3 {[%emt 0:00:51][%cal Bb1c3,Bc3a4,Ba4b6][%mdl 32]} O-O {[%emt 0:01:07]} 9. dxc5 {[%emt 0:02:06]} Bxc5 {[%emt 0:01:14]} 10. a3 {[%emt 0:00:49]} a6 {[%emt 0:34:35]} 11. b4 {[%emt 0:14:37] D34: Tarrasch Defence: 6 g3 Nf6 7 Bg2 Be7.} Be7 {[%emt 0:00:06]} 12. Be3 {[%emt 0:09:58] [#]} Be6 $146 {[%emt 0:09:59]} ({Predecessor:} 12... Re8 13. Na4 b5 14. Nb6 Rb8 15. Nxc8 Rxc8 16. Bh3 Bd6 17. Rc1 Rxe3 18. Bxc8 Qxc8 19. fxe3 {1-0 (38) Bragg,D (1992)-Chang,E (1629) Kirkland 2020}) 13. Na4 {[%emt 0:07:41] White is slightly better.} Ne4 {[%emt 0:02:30]} 14. Rc1 {[%emt 0:14:05]} Bf6 {[%emt 0:06:16]} 15. Nd4 {[%emt 0:04:23]} Nxd4 {[%emt 0:02:57]} 16. Bxd4 {[%emt 0:00:31]} Re8 {[%emt 0:03:30]} 17. Nb6 {[%emt 0:07:27]} Rb8 {[%emt 0:01:37]} 18. e3 {[%emt 0:01:20]} Qe7 {[%emt 0:05:52]} 19. Bxf6 {[%emt 0:03:08]} Nxf6 {[%emt 0:00:46]} 20. Qd4 {[%emt 0:00:32]} (20. Nxd5 $6 Bxd5 21. Bxd5 Rbd8 $11) (20. Bxd5 Rbd8 21. e4 Nxe4 $1 {[%mdl 512]} 22. Bxe4 Rxd1 23. Rfxd1 Bg4 $17) 20... Rbd8 {[%emt 0:03:05]} 21. Rfd1 {[%emt 0:02:51][%cal Bf1d1,Bd1d2,Bd2c2,Bc2c7][%mdl 32]} h6 {[%emt 0:09:43]} 22. Rd2 {[%emt 0:05:20]} Rd6 {[%emt 0:09:29]} 23. Rdc2 {[%emt 0:01:55]} Rb8 {[%emt 0:03:59]} 24. a4 {[%emt 0:03:38][%cal Ba3a4,Ba4a5,Ba5b6,Bb6b7][%mdl 32]} Qd8 {[%emt 0:00:16] [#]} 25. a5 {[%emt 0:02:25] &Bianco is much more active.} Bd7 $2 {[%emt 0:00:52] [#] This costs Black the game.} (25... Qf8 $16 {might work better.} 26. Bf3 Qd8) 26. e4 $1 $18 {[%emt 0:02:29] e5 is the strong threat.} (26. Nxd5 Nxd5 27. Bxd5 Be6 $14) 26... Rxb6 $2 {[%emt 0:00:24]} (26... Rc6 27. e5 (27. Nxd5 Rxc2 28. Rxc2 Nxd5 $16) 27... Rxc2 28. Rxc2 Bf5) 27. axb6 {[%emt 0:00:50] White is clearly winning.} ({Not} 27. Qxb6 Qxb6 28. axb6 dxe4 $16) 27... dxe4 {[%emt 0:00:05]} 28. Rc7 {[%emt 0:01:50]} Bc6 {[%emt 0:00:12]} (28... Qe8 $142 29. Bxe4 Nxe4) 29. Qxd8+ {[%emt 0:00:40]} ({Weaker is} 29. Qc4 Qe8 $16) 29... Rxd8 {[%emt 0:00:01]} 30. R1xc6 {[%emt 0:00:22]} bxc6 {[%emt 0:00:18]} 31. b7 {[%emt 0:00:06]} Ra8 {[%emt 0:02:37] Weighted Error Value: White=0.02 (flawless) /Black=0.32} 1-0

[Event "Italian-ch Teams-B 2022"]
[Site "Montesilvano"]
[Date "2022.04.22"]
[Round "5.3"]
[White "Bifulco, Michel"]
[Black "Loiacono, Leonardo"]
[Result "1/2-1/2"]
[ECO "C10"]
[WhiteElo "2274"]
[BlackElo "2284"]
[Annotator "TA"]
[PlyCount "84"]
[EventDate "2022.04.19"]
[EventType "team-tourn"]
[EventCountry "ITA"]
[SourceTitle "playchess.com"]
[Source "ChessBase"]
[SourceQuality "1"]
[TimeControl "40/5400+30:1800+30"]

{[%evp 16,84,47,25,35,15,35,22,18,9,8,6,55,27,24,0,36,3,24,-11,-5,-31,24,24,55,75,95,91,106,97,112,104,85,70,59,35,46,0,0,-7,8,0,2,5,5,-18,-18,-40,-12,-35,-33,-130,-33,-40,-40,-40,-40,-60,-40,-40,-40,-40,0,-40,-13,-40,-8,-8,0,0,0]} 1. e4 {[%emt 1:31:00]} e6 {[%emt 0:14:57]} 2. d4 {[%emt 0:00:00]} d5 {[%emt 0:00:04]} 3. Nc3 {[%emt 0:00:00]} dxe4 {[%emt 0:00:05]} 4. Nxe4 {[%emt 0:00:00]} Bd7 {[%emt 0:00:13]} 5. Nf3 {[%emt 0:00:00]} Bc6 {[%emt 0:00:34]} 6. Bd3 {[%emt 0:00:00]} Nd7 {[%emt 0:00:07]} 7. O-O {[%emt 0:00:00]} Ngf6 {[%emt 0:01:10]} 8. Ned2 {[%emt 0:00:00]} Be7 {[%emt 0:09:12]} 9. c4 {[%emt 0:00:00]} O-O {[%emt 0:03:30] C10: French with 3 Nc3: Unusual Black 3rd moves and 3...dxe4.} 10. Qc2 {[%emt 0:00:00]} Bxf3 {[%emt 0:02:23]} 11. Nxf3 {[%emt 0:00:00]} c5 {[%emt 0:00:37] [#]} 12. Rd1 $146 {[%emt 0:00:00]} ({Predecessor:} 12. Be3 Rc8 13. Rfd1 Qc7 14. Rac1 a6 15. Ng5 h6 16. Nf3 Ng4 17. Bd2 cxd4 18. h3 {0-1 (46) Dube,D (1992)-Cummins,P (1757) Ste Foy 2017}) 12... cxd4 {[%emt 0:03:06]} 13. Nxd4 {[%emt 0:00:00]} a6 {[%emt 0:00:25]} (13... Ne5 $11) 14. b3 {[%emt 0:00:00]} Qc7 {[%emt 0:02:07]} 15. Bb2 {[%emt 0:00:00]} Rfe8 {[%emt 0:00:38]} 16. Rac1 {[%emt 0:00:00]} Bc5 {[%emt 0:06:37] [#] ...e5 is the strong threat.} 17. Be2 {[%emt 0:00:00]} Ne5 {[%emt 0:06:35]} (17... Qf4 18. a3 $16) 18. h3 {[%emt 0:00:00] Against Neg4} Ng6 {[%emt 0:01:16]} (18... Rad8 $15) 19. a3 $11 {[%emt 0:00:00]} Rad8 {[%emt 0:05:12] Strongly threatening ...Qf4.} (19... Qf4 20. b4 Bxd4 21. Rxd4 $16) 20. b4 {[%emt 0:00:00]} Ba7 {[%emt 0:00:03]} 21. Nf3 {[%emt 0:00:00]} Rxd1+ {[%emt 0:05:11]} 22. Rxd1 {[%emt 0:00:00]} ({Of course not} 22. Bxd1 $6 e5 $11) 22... e5 {[%emt 0:01:07][%cal Be6e5,Be5e4][%mdl 32]} 23. Ng5 {[%emt 0:00:00]} e4 {[%emt 0:16:38] Hoping for ...Qf4.} 24. Bxf6 {[%emt 0:00:00] A strong pair of Bishops.} Bxf2+ $1 {[%emt 0:00:05][%mdl 64] Decoy} 25. Kxf2 {[%emt 0:00:00]} Qf4+ {[%emt 0:00:10] [#]} 26. Kg1 {[%emt 0:00:00]} (26. Nf3 $1 $14 {is more appropriate.} exf3 (26... Qxf6 27. Kg1) 27. Bxf3 gxf6 28. Qc3 (28. Kg1 Qe3+ 29. Kh1 Qxa3 $11)) 26... gxf6 {[%emt 0:00:10]} 27. Nf3 {[%emt 0:02:34]} exf3 {[%emt 0:01:48]} 28. Bxf3 {[%emt 0:00:10]} Qe3+ {[%emt 0:02:31]} 29. Qf2 {[%emt 0:00:32] Black must now prevent Qxe3.} Qxa3 {[%emt 0:00:06]} 30. Bxb7 {[%emt 0:05:35]} Qxb4 {[%emt 0:00:05]} 31. Bd5 {[%emt 0:00:08]} Qc3 {[%emt 0:03:17]} 32. Rf1 {[%emt 0:03:26]} Kg7 {[%emt 0:00:22]} 33. Kh1 {[%emt 0:00:06]} (33. Qa7 $1 $15 Ne7 34. Qd7 Qe3+ 35. Kh2 Qe5+ 36. Kh1) 33... Qe5 {[%emt 0:04:06]} (33... Re3 $17 34. c5 Ne7) 34. Qa7 {[%emt 0:00:59]} Ne7 {[%emt 0:00:23]} 35. Qxa6 {[%emt 0:00:18]} Nf5 {[%emt 0:00:39] ( -> ...Ng3+)} 36. Rd1 {[%emt 0:02:02]} Ng3+ {[%emt 0:09:18]} 37. Kg1 $1 {[%emt 0:00:18]} Ne2+ {[%emt 0:00:05]} 38. Kh1 {[%emt 0:00:11]} Ng3+ {[%emt 0:00:14]} 39. Kg1 $1 {[%emt 0:00:01]} Qe3+ {[%emt 0:03:29]} 40. Kh2 {[%emt 0:00:07]} Qf4 {[%emt 0:00:04] aiming for ...Re3.} 41. Qa7 {[%emt 0:19:50]} Ne2+ {[%emt 0:17:00]} ({But not} 41... Nf1+ 42. Kg1 Qe3+ 43. Qxe3 Nxe3 44. Rd3 $14) 42. Kh1 {[%emt 0:00:27]} Ng3+ {[%emt 0:00:04] Weighted Error Value: White=0.18 (very precise) /Black=0.19 (very precise)} 1/2-1/2